fUST/lending_fUST_20240725
["ID","MTS","AMOUNT","RATE_DAILY","PERIOD"]
[333171584,1721913040817,-495.69104374,9.9e-05,2]
[333171586,1721913040827,-8707.16909317,9.9e-05,2]
[333171588,1721913040837,-3782.59755445,9.9e-05,2]
[333171590,1721913040847,-2107.09834524,9.9e-05,2]
[333171592,1721913040857,-16274.21667808,9.9e-05,2]
[333171594,1721913040866,-218.00151768,9.9e-05,2]
[333171596,1721913040875,-4708.68993712,9.9e-05,2]
[333171598,1721913040884,-154.80649189,9.9e-05,2]
[333171600,1721913040893,-542.52748339,9.999e-05,2]
[333171602,1721913040903,-403.39616838,9.999e-05,2]
[333171604,1721913040913,-156.4756886,9.999e-05,2]
[333171606,1721913040922,-160.02872969,9.999e-05,2]
[333171608,1721913040932,-439.07850064,9.999e-05,2]
[333171610,1721913040941,-154.80649189,9.999e-05,2]
[333171612,1721913040950,-521.61052637,9.999e-05,2]
[333171614,1721913040960,-309.47390132,9.999e-05,2]
[333171616,1721913040969,-188.0737834,9.999e-05,2]
[333171619,1721913040979,-157.66852788,9.999e-05,2]
[333171621,1721913040988,-375.7190477,9.999e-05,2]
[333171622,1721913040997,-240.59744191,9.999e-05,2]
[333171624,1721913041006,-154.80649189,9.999e-05,2]
[333171626,1721913041015,-600.34409866,9.999e-05,2]
[333171628,1721913041024,-726.90527473,9.999e-05,2]
[333171631,1721913041034,-309.47390132,9.999e-05,2]
[333171632,1721913041046,-778.99945191,9.999e-05,2]
[333171634,1721913041056,-155.01062865,9.999e-05,2]
[333171636,1721913041065,-341.75517415,9.999e-05,2]
[333171638,1721913041075,-519.49324857,9.999e-05,2]
[333171640,1721913041084,-533.46933228,9.999e-05,2]
[333171642,1721913041094,-941.81566876,9.999e-05,2]
[333171644,1721913041105,-663.51231387,9.999e-05,2]
[333171646,1721913041115,-806.05588031,9.999e-05,2]
[333171648,1721913041125,-404.41023413,9.999e-05,2]
[333171650,1721913041134,-154.80649189,9.999e-05,2]
[333171652,1721913041144,-319.18205091,9.999e-05,2]
[333171654,1721913041154,-288.28494131,9.999e-05,2]
[333171656,1721913041164,-248.87416602,9.999e-05,2]
[333171658,1721913041173,-155.0383145,9.999e-05,2]
[333171660,1721913041183,-154.80649189,9.999e-05,2]
[333171662,1721913041193,-848.67298078,9.999e-05,2]
[333171664,1721913041202,-154.86308045,9.999e-05,2]
[333171666,1721913041212,-309.45846005,9.999e-05,2]
[333171668,1721913041221,-154.83734357,9.999e-05,2]
[333171670,1721913041231,-201.30530872,9.999e-05,2]
[333171673,1721913041241,-731.30595831,9.999e-05,2]
[333171675,1721913041252,-530.88898098,9.999e-05,2]
[333171677,1721913041261,-181.09524599,9.999e-05,2]
[333171679,1721913041272,-309.48934567,9.999e-05,2]
[333171681,1721913041282,-154.80649189,9.999e-05,2]
[333171683,1721913041297,-193.55260034,9.999e-05,2]
[333171685,1721913041307,-196.30125481,9.999e-05,2]
[333171688,1721913041319,-157.67039442,9.999e-05,2]
[333171690,1721913041330,-199.24858981,9.999e-05,2]
[333171692,1721913041340,-287.53104938,0.0001,2]
[333171694,1721913041350,-309.44300953,0.0001,2]
[333171696,1721913041359,-420.0,0.00010116,2]
[333171698,1721913041369,-420.0,0.00010116,2]
[333171700,1721913041379,-818.0,0.00010959,2]
[333171702,1721913041391,-587.0,0.00011127,2]
[333171704,1721913041400,-420.0,0.00011127,2]
[333171707,1721913041411,-823.0,0.0001224,2]
[333171709,1721913041420,-1604.99195248,0.000129,2]
[333171711,1721913041430,-1604.99195241,0.000129,2]
[333171713,1721913041439,-1604.99195241,0.000129,2]
[333171715,1721913041449,-334.0998468,0.00012941,2]
[333171717,1721913041459,-1000.0,0.00013,6]
[333171719,1721913041470,-441.7258208,0.00013078,2]
[333171721,1721913041479,-5306.88604622,0.00013216,2]
[333171723,1721913041489,-367.51233122,0.00013314,2]
[333171725,1721913041498,-8890.770548,0.000134,2]
[333171727,1721913041509,-200.0,0.00013425,2]
[333171729,1721913041518,-8890.77054796,0.0001345,2]
[333171731,1721913041527,-15887.38944052,0.00013454,2]
[333172239,1721913047321,-200.0,9.2e-05,2]
[333172241,1721913047332,-1238.1,0.00013454,2]
[333172385,1721913204845,-273.37336231,9.9e-05,2]
[333172386,1721913204868,-200.0,9.9e-05,2]
[333172389,1721913208127,273.37336231,9.9e-05,2]
[333172390,1721913217155,273.37336231,9.9e-05,2]
[333172391,1721913226515,200.0,0.0001,2]
[333172392,1721913241436,309.44296324,9.9e-05,2]
[333172393,1721913245026,4708.68993712,9.9e-05,2]
[333172394,1721913246307,16274.21667808,9.9e-05,2]
[333172395,1721913255659,3782.59755445,9.9e-05,2]
[333172396,1721913258699,2107.09834524,9.9e-05,2]
[333172397,1721913286227,3782.59755445,9.9e-05,2]
[333172398,1721913286264,1625.88982265,9.9e-05,2]
[333172399,1721913305610,200.0,0.0001,2]
[333172400,1721913346361,4708.68993712,0.0001,2]
[333172401,1721913368819,8347.65712072,0.0001,2]
[333172402,1721913446742,269.20148996,9.999e-05,7]
[333172403,1721913491728,22625.459782,0.0001,10]
[333172408,1721914006441,-244.70043433,9.898e-05,2]
[333172409,1721914006466,-55.30073691,9.899e-05,2]
[333172901,1721914240853,-250.0,9.225e-05,2]
[333172903,1721914240866,-200.0,9.23e-05,2]
[333172905,1721914240877,-521.5906284,9.285e-05,2]
[333172907,1721914240890,-300.0,9.898e-05,2]
[333172909,1721914240902,-300.0,9.898e-05,2]
[333172911,1721914240913,-371.5071308,9.899e-05,2]
[333172913,1721914240943,-7074.31159081,9.899e-05,2]
[333172914,1721914240955,-1625.88982265,9.899e-05,2]
[333172915,1721914240967,-2105.64876424,9.899e-05,2]
[333172916,1721914240979,-3517.88423097,9.899e-05,2]
[333172917,1721914240991,-2677.79205462,9.899e-05,2]
[333172918,1721914241003,-181.92190609,9.899e-05,2]
[333172919,1721914241014,-237.222643,9.926e-05,2]
[333172921,1721914241026,-237.222643,9.954e-05,2]
[333172923,1721914241037,-237.222643,9.981e-05,2]
[333172925,1721914241049,-227.49523033,9.999e-05,2]
[333172927,1721914241061,-155.01343581,9.999e-05,2]
[333172928,1721914241072,-156.514868,9.999e-05,2]
[333172930,1721914241086,-359.45030284,9.999e-05,2]
[333172932,1721914241096,-247.00525347,9.999e-05,2]
[333172933,1721914241107,-237.222643,0.00010008,2]
[333172935,1721914241116,-237.222643,0.00010035,2]
[333172937,1721914241126,-237.222643,0.00010062,2]
[333172938,1721914241136,-237.222643,0.00010089,2]
[333172939,1721914241146,-237.222643,0.00010117,2]
[333172940,1721914241156,-237.222643,0.00010144,2]
[333172941,1721914241406,-237.222643,0.00010171,2]
[333172942,1721914241425,-237.222643,0.00010198,2]
[333172943,1721914241435,-237.222643,0.00010225,2]
[333172944,1721914241445,-237.222643,0.00010252,2]
[333172945,1721914241454,-237.222643,0.00010279,2]
[333172946,1721914241464,-237.222643,0.00010307,2]
[333172947,1721914241474,-237.222643,0.00010334,2]
[333172948,1721914241483,-237.222643,0.00010361,2]
[333172949,1721914241493,-237.222643,0.00010388,2]
[333172950,1721914241504,-237.222643,0.00010415,2]
[333172951,1721914241513,-400.0,0.000106,2]
[333172952,1721914241523,-420.0,0.00010888,2]
[333172953,1721914241532,-420.0,0.00010888,2]
[333172954,1721914241542,-22880.97276199,0.0001115,2]
[333173043,1721914246988,-191.41538237,9.132e-05,2]
[333173044,1721914246997,-449.24461763,0.0001115,2]
[333173045,1721914247404,-314.0,0.0001115,2]
[333173046,1721914247416,-411.11179919,0.0001115,2]
[333173068,1721915355951,1765.85,7.25e-05,2]
[333173071,1721915380768,282.25280295,7.25e-05,2]
[333173072,1721915382432,2172.58590131,7.25e-05,2]
[333173073,1721915382752,4708.68993712,7.25e-05,2]
[333173074,1721915390139,1480.73851933,7.25e-05,2]
[333173075,1721915395949,161.21328073,7.25e-05,2]
[333173078,1721915402171,164.24967346,7.25e-05,2]
[333173079,1721915402286,3782.59755445,7.25e-05,2]
[333173101,1721915432190,-191.44715895,9.125e-05,2]
[333173102,1721915432200,-200.0,9.13e-05,2]
[333173103,1721915432210,-170.01580909,9.13e-05,2]
[333173187,1721915443451,-29.98419091,9.13e-05,2]
[333173188,1721915443462,-300.0,9.727e-05,2]
[333173189,1721915443472,-300.0,9.727e-05,2]
[333173190,1721915443482,-24900.0,9.728e-05,2]
[333173191,1721915443492,-542.61757791,9.999e-05,2]
[333173192,1721915443502,-312.74657292,9.999e-05,2]
[333173193,1721915443512,-341.98933379,9.999e-05,2]
[333173194,1721915443521,-154.82195475,9.999e-05,2]
[333173195,1721915443531,-162.17557523,9.999e-05,2]
[333173196,1721915443541,-521.61052637,9.999e-05,2]
[333173197,1721915443551,-154.82195475,9.999e-05,2]
[333173200,1721915443562,-155.93015526,9.999e-05,2]
[333173201,1721915443743,-726.90527473,9.999e-05,2]
[333173202,1721915443753,-600.34409866,9.999e-05,2]
[333173203,1721915443764,-156.11151256,9.999e-05,2]
[333173204,1721915443775,-155.24326506,9.999e-05,2]
[333173205,1721915443788,-157.24600443,9.999e-05,2]
[333173206,1721915443797,-288.28494131,9.999e-05,2]
[333173207,1721915443807,-201.30530872,9.999e-05,2]
[333173208,1721915443817,-154.82195475,9.999e-05,2]
[333173209,1721915443828,-211.00639127,9.999e-05,2]
[333173210,1721915443840,-309.43745822,9.999e-05,2]
[333173211,1721915443850,-330.73988639,9.999e-05,2]
[333173212,1721915443861,-157.67039442,9.999e-05,2]
[333173213,1721915443874,-157.58767969,9.999e-05,2]
[333173214,1721915443883,-164.44316777,9.999e-05,2]
[333173215,1721915443893,-344.90731527,9.999e-05,2]
[333173216,1721915443903,-240.59744191,9.999e-05,2]
[333173217,1721915443913,-343.0251587,9.999e-05,2]
[333173218,1721915443922,-155.60250398,9.999e-05,2]
[333173219,1721915443932,-287.53104938,0.0001,2]
[333173220,1721915443942,-171.06874628,0.0001,2]
[333173221,1721915443951,-166.666667,0.00010099,2]
[333173222,1721915443961,-166.666667,0.00010204,2]
[333173223,1721915443970,-166.666667,0.00010309,2]
[333173224,1721915443981,-166.666667,0.00010415,2]
[333173225,1721915443990,-166.666667,0.0001052,2]
[333173226,1721915444000,-166.666667,0.00010625,2]
[333173227,1721915444011,-420.0,0.000107,2]
[333173228,1721915444020,-245.96477279,0.0001115,2]
[333173229,1721915444032,-367.51233122,0.00011247,2]
[333173230,1721915444042,-150.0,0.00011327,2]
[333173231,1721915444053,-587.0,0.0001177,2]
[333173232,1721915444064,-334.0998468,0.00011781,2]
[333173233,1721915444073,-306.0,0.00012055,2]
[333173234,1721915444083,-441.7258208,0.00012055,2]
[333173235,1721915444093,-153.0,0.0001218,2]
[333173236,1721915444103,-306.0,0.0001218,2]
[333173237,1721915444112,-167.1479513,0.0001218,2]
[333173238,1721915444126,-153.0,0.0001218,2]
[333173239,1721915444139,-153.0,0.0001218,2]
[333173240,1721915444150,-153.0,0.00012329,2]
[333173241,1721915444160,-153.0,0.00012329,2]
[333173242,1721915444170,-153.0,0.00012329,2]
[333173243,1721915444180,-2238.55488322,0.000129,2]
[333173244,1721915444190,-2238.55488321,0.000129,2]
[333173245,1721915444200,-2238.55488321,0.000129,2]
[333173246,1721915444210,-12078.81294928,0.000129,2]
[333173247,1721915444221,-823.0,0.00012947,2]
[333173248,1721915444230,-40275.5919371,0.0001299,2]
[333173249,1721915444240,-35582.62511059,0.00013,2]
[333173250,1721915444249,-1000.0,0.00013,6]
[333173251,1721915444258,-209.138047,0.00013,2]
[333173252,1721915444268,-415.4160198,0.00013001,2]
[333173253,1721915444277,-306.0,0.00013051,2]
[333173254,1721915444286,-12078.81294928,0.00013075,2]
[333173255,1721915444295,-153.0,0.00013178,2]
[333173256,1721915444304,-153.0,0.00013178,2]
[333173257,1721915444314,-206.7208342,0.00013178,2]
[333173258,1721915444324,-12078.81294928,0.00013249,2]
[333173259,1721915444334,-659.14433672,0.00013356,2]
[333173260,1721915444343,-246.956326,0.0001338,2]
[333173261,1721915444352,-204.869387,0.0001338,2]
[333173262,1721915444361,-151.0,0.00013383,2]
[333173263,1721915444373,-151.0,0.00013383,2]
[333173264,1721915444383,-151.0,0.00013383,2]
[333173265,1721915444392,-151.0,0.00013383,2]
[333173266,1721915444401,-151.0,0.00013383,2]
[333173267,1721915444410,-151.0,0.00013383,2]
[333173268,1721915444420,-151.0,0.00013383,2]
[333173269,1721915444429,-151.0,0.00013383,2]
[333173270,1721915444440,-150.112233,0.000134,2]
[333173271,1721915444449,-151.0,0.00013405,2]
[333173272,1721915444459,-199.576796,0.00013405,2]
[333173273,1721915444468,-199.576796,0.00013405,2]
[333173274,1721915444478,-151.0,0.00013405,2]
[333173275,1721915444488,-347.909786,0.00013405,2]
[333173276,1721915444497,-347.909786,0.00013405,2]
[333173277,1721915444506,-211.844255,0.00013405,2]
[333173278,1721915444516,-211.844255,0.00013405,2]
[333173279,1721915444525,-151.0,0.00013405,2]
[333173280,1721915444534,-151.0,0.00013405,2]
[333173281,1721915444544,-151.0,0.00013405,2]
[333173282,1721915444553,-151.0,0.00013405,2]
[333173283,1721915444562,-199.501786,0.00013405,2]
[333173284,1721915444573,-199.501786,0.00013405,2]
[333173285,1721915444583,-151.0,0.00013405,2]
[333173286,1721915444592,-151.0,0.00013405,2]
[333173287,1721915444602,-151.0,0.00013405,2]
[333173288,1721915444611,-151.0,0.00013405,2]
[333173289,1721915444622,-151.0,0.00013405,2]
[333173290,1721915444631,-151.0,0.00013405,2]
[333173291,1721915444641,-12078.81294928,0.00013424,2]
[333173292,1721915444650,-200.0,0.00013425,2]
[333173293,1721915444659,-40275.5919371,0.00013444,2]
[333173294,1721915444669,-151.0,0.00013444,2]
[333173295,1721915444679,-171.561649,0.00013444,2]
[333173296,1721915444688,-151.0,0.00013444,2]
[333173297,1721915444697,-151.0,0.00013444,2]
[333173298,1721915444707,-151.0,0.00013444,2]
[333173299,1721915444716,-1943.759753,0.00013444,2]
[333173300,1721915444728,-1943.759753,0.00013444,2]
[333173301,1721915444739,-151.0,0.00013444,2]
[333173302,1721915444749,-151.0,0.00013444,2]
[333173303,1721915444760,-151.0,0.00013444,2]
[333173304,1721915444771,-151.0,0.00013444,2]
[333173305,1721915444782,-187.688585,0.00013444,2]
[333173306,1721915444792,-187.688585,0.00013444,2]
[333173307,1721915444803,-151.0,0.00013444,2]
[333173308,1721915444813,-151.0,0.00013444,2]
[333173309,1721915444822,-151.0,0.00013444,2]
[333173310,1721915444833,-151.0,0.00013444,2]
[333173311,1721915444843,-151.0,0.00013444,2]
[333173312,1721915444855,-151.0,0.00013444,2]
[333173313,1721915444865,-151.0,0.00013444,2]
[333173314,1721915444877,-151.0,0.00013444,2]
[333173315,1721915444887,-199.576796,0.00013444,2]
[333173316,1721915444899,-199.576796,0.00013444,2]
[333173317,1721915444911,-347.909786,0.00013444,2]
[333173318,1721915444922,-347.909786,0.00013444,2]
[333173319,1721915444933,-211.844255,0.00013444,2]
[333173320,1721915444943,-211.844255,0.00013444,2]
[333173321,1721915444953,-151.0,0.00013444,2]
[333173322,1721915444966,-151.0,0.00013444,2]
[333173323,1721915444977,-151.0,0.00013444,2]
[333173324,1721915444987,-151.0,0.00013444,2]
[333173325,1721915444996,-199.501786,0.00013444,2]
[333173326,1721915445007,-199.501786,0.00013444,2]
[333173327,1721915445018,-151.0,0.00013444,2]
[333173328,1721915445030,-151.0,0.00013444,2]
[333173329,1721915445042,-151.0,0.00013444,2]
[333173330,1721915445052,-151.0,0.00013444,2]
[333173331,1721915445063,-151.0,0.00013444,2]
[333173332,1721915445074,-151.0,0.00013444,2]
[333173333,1721915445085,-151.0,0.00013444,2]
[333173334,1721915445096,-151.0,0.00013444,2]
[333173335,1721915445106,-151.0,0.00013444,2]
[333173336,1721915445117,-241.786727,0.00013444,2]
[333173337,1721915445128,-151.0,0.00013444,2]
[333173338,1721915445142,-151.0,0.00013444,2]
[333173339,1721915445153,-151.0,0.00013444,2]
[333173340,1721915445163,-151.0,0.00013444,2]
[333173341,1721915445174,-151.0,0.00013444,2]
[333173342,1721915445185,-151.0,0.00013444,2]
[333173343,1721915445195,-245.805845,0.00013444,2]
[333173344,1721915445204,-245.805845,0.00013444,2]
[333173345,1721915445214,-38192.24637909,0.00013454,2]
[333173346,1721915445224,-151.0,0.00013454,2]
[333173347,1721915445234,-151.0,0.00013454,2]
[333173348,1721915445243,-151.0,0.00013454,2]
[333173349,1721915445252,-151.0,0.00013454,2]
[333173350,1721915445262,-1943.759753,0.00013454,2]
[333173351,1721915445271,-1943.759753,0.00013454,2]
[333173352,1721915445281,-226.084037,0.00013454,2]
[333173353,1721915445291,-151.0,0.00013454,2]
[333173354,1721915445300,-187.688585,0.00013454,2]
[333173355,1721915445310,-187.688585,0.00013454,2]
[333173356,1721915445319,-151.0,0.00013454,2]
[333173357,1721915445328,-151.0,0.00013454,2]
[333173358,1721915445337,-234.493208,0.00013454,2]
[333173359,1721915445347,-151.0,0.00013454,2]
[333173360,1721915445356,-151.0,0.00013454,2]
[333173361,1721915445365,-151.0,0.00013454,2]
[333173362,1721915445377,-151.0,0.00013454,2]
[333173363,1721915445387,-151.0,0.00013454,2]
[333173364,1721915445397,-199.576796,0.00013454,2]
[333173365,1721915445407,-199.576796,0.00013454,2]
[333173366,1721915445416,-347.909786,0.00013454,2]
[333173367,1721915445426,-347.909786,0.00013454,2]
[333173368,1721915445436,-211.844255,0.00013454,2]
[333173369,1721915445445,-211.844255,0.00013454,2]
[333173370,1721915445455,-151.865586,0.00013454,2]
[333173371,1721915445465,-151.0,0.00013454,2]
[333173372,1721915445474,-151.0,0.00013454,2]
[333173373,1721915445483,-188.938436,0.00013454,2]
[333173374,1721915445493,-199.501786,0.00013454,2]
[333173375,1721915445502,-199.501786,0.00013454,2]
[333173376,1721915445511,-151.0,0.00013454,2]
[333173377,1721915445522,-151.0,0.00013454,2]
[333173378,1721915445532,-151.0,0.00013454,2]
[333173379,1721915445543,-151.0,0.00013454,2]
[333173380,1721915445554,-151.0,0.00013454,2]
[333173381,1721915445564,-211.885147,0.00013454,2]
[333173382,1721915445574,-151.0,0.00013454,2]
[333173383,1721915445585,-151.0,0.00013454,2]
[333173384,1721915445595,-151.0,0.00013454,2]
[333173385,1721915445606,-151.0,0.00013454,2]
[333173386,1721915445616,-151.0,0.00013454,2]
[333173387,1721915445629,-151.0,0.00013454,2]
[333173388,1721915445641,-151.0,0.00013454,2]
[333173389,1721915445652,-151.0,0.00013454,2]
[333173390,1721915445664,-151.0,0.00013454,2]
[333173391,1721915445675,-245.805845,0.00013454,2]
[333173392,1721915445685,-245.805845,0.00013454,2]
[333173393,1721915445695,-151.0,0.00013461,2]
[333173394,1721915445706,-151.0,0.00013461,2]
[333173395,1721915445715,-151.0,0.00013461,2]
[333173396,1721915445724,-151.0,0.00013461,2]
[333173397,1721915445734,-151.0,0.00013461,2]
[333173398,1721915445744,-151.0,0.00013461,2]
[333173399,1721915445754,-301.609592,0.00013461,2]
[333173400,1721915445764,-151.0,0.00013461,2]
[333173401,1721915445774,-188.301598,0.00013461,2]
[333173402,1721915445783,-151.0,0.00013461,2]
[333173403,1721915445793,-151.0,0.00013461,2]
[333173404,1721915445802,-151.0,0.00013461,2]
[333173405,1721915445811,-152.15397,0.00013461,2]
[333173406,1721915445821,-245.805845,0.00013461,2]
[333173407,1721915445832,-245.805845,0.00013461,2]
[333173408,1721915445843,-323.4374528,0.00013462,2]
[333173409,1721915445853,-187.688585,0.00013476,2]
[333173410,1721915445864,-187.688585,0.00013476,2]
[333173411,1721915445874,-151.0,0.00013476,2]
[333173412,1721915445884,-151.0,0.00013476,2]
[333173413,1721915445896,-151.0,0.00013476,2]
[333173414,1721915445907,-151.0,0.00013476,2]
[333173415,1721915445918,-151.0,0.00013476,2]
[333173416,1721915445929,-199.576796,0.00013476,2]
[333173417,1721915445941,-199.576796,0.00013476,2]
[333173418,1721915445951,-347.909786,0.00013476,2]
[333173419,1721915445961,-347.909786,0.00013476,2]
[333173420,1721915445970,-211.844255,0.00013476,2]
[333173421,1721915445980,-149.01065236,0.00013476,2]
[333173556,1721916638624,-200.0,8.86e-05,2]
[333173558,1721916638636,-200.0,8.86e-05,2]
[333173559,1721916638648,-904.72890543,9.999e-05,2]
[333173560,1721916638659,-286.93637188,9.999e-05,2]
[333173561,1721916638669,-203.67656339,9.999e-05,2]
[333173562,1721916638680,-202.33959701,9.999e-05,2]
[333173563,1721916638691,-157.67039442,9.999e-05,2]
[333173564,1721916638703,-250.0,0.00011161,2]
[333173565,1721916638715,-300.0,0.00011638,2]
[333173567,1721916638726,-919.8325346,0.0001164,2]
[333173569,1721916638735,-16946.97581558,0.00011982,2]
[333173612,1721916640385,-542.61757791,9.999e-05,2]
[333173614,1721916640395,-7953.02418442,0.00011982,2]
[333173615,1721916640405,-154.82195475,0.00012119,2]
[333173616,1721916640416,-153.0,0.00012241,2]
[333173617,1721916640427,-420.0,0.00012802,2]
[333173618,1721916640437,-1399.09680205,0.00013051,2]
[333173619,1721916640450,-153.0,0.00013151,2]
[333173620,1721916640460,-153.0,0.00013151,2]
[333173621,1721916640471,-293.9641968,0.00013151,2]
[333173622,1721916640484,-293.9641968,0.00013151,2]
[333173623,1721916640494,-293.9641968,0.00013151,2]
[333173624,1721916640505,-293.9641968,0.00013151,2]
[333173625,1721916640514,-293.9641968,0.00013151,2]
[333173626,1721916640527,-293.9641968,0.00013151,2]
[333173627,1721916640536,-293.9641968,0.00013151,2]
[333173628,1721916640547,-293.9641968,0.00013151,2]
[333173629,1721916640557,-293.9641968,0.00013151,2]
[333173630,1721916640568,-153.0,0.000132,2]
[333173631,1721916640578,-153.0,0.000132,2]
[333173632,1721916640588,-153.0,0.000132,2]
[333173633,1721916640599,-293.9641968,0.000132,2]
[333173634,1721916640609,-293.9641968,0.00013205,2]
[333173635,1721916640619,-293.9641968,0.00013205,2]
[333173636,1721916640628,-293.9641968,0.00013205,2]
[333173637,1721916640637,-293.9641968,0.00013205,2]
[333173638,1721916640647,-367.51233122,0.00013211,2]
[333173639,1721916640657,-621.95721684,0.00013323,2]
[333173640,1721916640666,-5228.62644426,0.00013373,2]
[333173641,1721916640675,-200.0,0.00013425,2]
[333173642,1721916640684,-293.9641968,0.00013425,2]
[333173643,1721916640694,-293.9641968,0.00013425,2]
[333173644,1721916640705,-161.7187264,0.00013462,2]
[333173645,1721916640715,-8340.67773172,0.00013476,2]
[333173646,1721916640725,-3782.59755445,0.00013476,2]
[333173647,1721916640734,-683.77053496,0.00013515,2]
[333173648,1721916640744,-151.0,0.0001352,2]
[333173649,1721916640753,-151.0,0.0001352,2]
[333173650,1721916640763,-300.22357346,0.00013522,2]
[333173651,1721916640773,-246.956326,0.00013548,2]
[333173652,1721916640783,-204.869387,0.00013548,2]
[333173653,1721916640793,-640.07094556,0.0001358,2]
[333173654,1721916640803,-151.0,0.00013588,2]
[333173655,1721916640812,-151.0,0.00013588,2]
[333173656,1721916640822,-2000.0,0.00013597,2]
[333173657,1721916640832,-2415.76258988,0.00013597,2]
[333173658,1721916640842,-2415.76258985,0.00013597,2]
[333173659,1721916640851,-2415.76258985,0.00013598,2]
[333173660,1721916640861,-2415.76258985,0.00013598,2]
[333173661,1721916640870,-151.0,0.00013598,2]
[333173662,1721916640880,-2415.76258985,0.00013598,2]
[333173663,1721916640889,-1524.065247,0.00013598,2]
[333173664,1721916640898,-951.0,0.000136,2]
[333173665,1721916640907,-151.0,0.00013678,2]
[333173666,1721916640917,-151.0,0.00013688,2]
[333173667,1721916640926,-245.29535,0.00013688,2]
[333173668,1721916640936,-151.0,0.00013688,2]
[333173669,1721916640945,-151.0,0.00013688,2]
[333173670,1721916640956,-151.0,0.00013688,2]
[333173671,1721916640965,-151.0,0.00013688,2]
[333173672,1721916640975,-176.431962,0.00013688,2]
[333173673,1721916640984,-151.0,0.00013688,2]
[333173674,1721916640994,-151.0,0.00013688,2]
[333173675,1721916641004,-151.0,0.00013688,2]
[333173676,1721916641013,-71340.42605196,0.00013688,2]
[333173677,1721916641047,-1408.79102088,0.00013688,2]
[333173743,1721916643290,-321.8,0.00013688,2]
[333173744,1721916643341,-23036.46221694,0.00013688,2]
[333173745,1721916643354,-2707.58577157,0.00013688,2]
[333173746,1721916643367,-2713.860445,0.00013688,2]
[333173747,1721916643381,-1206.4336295,0.00013688,2]
[333173748,1721916643393,-416.96102591,0.00013688,2]
[333173805,1721916646349,-273.37336231,9.9e-05,2]
[333173809,1721916646360,-293.9641968,0.00012378,2]
[333173813,1721916646370,-153.0,0.00012378,2]
[333173817,1721916646379,-554.00244089,0.00013688,2]
[333173904,1721916793322,532.399121,0.000136,30]
[333173910,1721917393797,150.0,0.000136,30]
[333173912,1721917594980,-273.37336231,9.51e-05,2]
[333173913,1721917595006,-26.62901838,9.999e-05,2]
[333174053,1721917834127,-249.80155627,9.8e-05,2]
[333174085,1721917838430,-21.52551575,9.8e-05,2]
[333174086,1721917838441,-244.89057225,9.999e-05,2]
[333174087,1721917838450,-20.972222,9.999e-05,2]
[333174088,1721917838490,-136.69817242,9.999e-05,2]
[333174089,1721917838499,-459.2503171,9.999e-05,2]
[333174090,1721917838508,-238.3321948,9.999e-05,2]
[333174091,1721917838517,-300.0,0.00011903,2]
[333174092,1721917838526,-21742.10930764,0.00011904,2]
[333174093,1721917838538,-3157.89069236,0.00011904,2]
[333174094,1721917838548,-367.51233122,0.00013213,2]
[333174095,1721917838558,-5306.88604622,0.00013216,2]
[333174096,1721917838568,-1224.20970175,0.00013277,2]
[333174097,1721917838577,-153.66709521,0.00013377,2]
[333174098,1721917838589,-266.357179,0.0001338,2]
[333174099,1721917838599,-232.124583,0.0001338,2]
[333174100,1721917838608,-157.194219,0.0001338,2]
[333174101,1721917838617,-153.0,0.000134,2]
[333174102,1721917838627,-293.9641968,0.000134,2]
[333174103,1721917838638,-200.0,0.00013425,2]
[333174104,1721917838647,-153.0,0.000135,2]
[333174105,1721917838656,-153.0,0.000135,2]
[333174106,1721917838665,-153.0,0.000135,2]
[333174107,1721917838675,-153.0,0.000135,2]
[333174108,1721917838684,-153.0,0.000135,2]
[333174109,1721917838693,-153.0,0.000135,2]
[333174110,1721917838704,-153.0,0.000135,2]
[333174111,1721917838714,-153.0,0.000135,2]